bitfinex-derivatives/quotes_ETHF0:USTF0_20260203
["timestamp","ask_amount","ask_price","bid_price","bid_amount"]
[1770162048670,2.40821779,2247.5,2246.4,2.50855365]
[1770162050472,3.347,2247.4,2246.4,2.50855365]
[1770162050873,3.35,2247.4,2246.4,2.50855365]
[1770162052466,2.40821779,2247.5,2246.4,2.50855365]
[1770162052668,39.55955715,2248.1,2246.7,2.33858376]
[1770162052872,2.74963722,2248.1,2246.7,2.56144376]
[1770162053174,3.355,2248.0,2246.7,2.56144376]
[1770162053372,5.88190722,2248.0,2246.7,2.56144376]
[1770162055974,2.52460113,2247.9,2246.7,2.56144376]
[1770162056269,0.22276,2247.8,2246.7,2.33858376]
[1770162056475,2.52460113,2247.7,2246.7,2.33858376]
[1770162056775,2.52460113,2247.5,2246.4,2.36388935]
[1770162058970,3.402,2247.4,2246.4,2.58677935]
[1770162059873,2.52460113,2247.8,2246.7,2.36388935]
[1770162060066,3.405,2247.7,2246.7,2.36388935]
[1770162060675,2.52460113,2247.6,2246.4,5.00158269]
[1770162060880,2.52460113,2247.6,2246.4,2.36388935]
[1770162061183,2.52460113,2247.2,2246.2,0.00462764]
[1770162061376,2.52460113,2247.0,2246.2,0.00462764]
[1770162061581,2.52877861,2247.0,2246.2,0.00462764]
[1770162061985,39.33682715,2247.7,2246.5,2.36388935]
[1770162062285,3.414,2247.7,2246.5,2.58676935]
[1770162062480,3.414,2247.7,2246.6,2.36388935]
[1770162062680,2.52460113,2247.6,2246.6,2.36388935]
[1770162063088,2.5299447,2247.6,2246.3,2.36388935]
[1770162063390,2.52460113,2247.4,2246.2,2.36851699]
[1770162063588,2.52460113,2246.6,2245.8,2.63769334]
[1770162063894,5.647,2247.3,2244.9,2.36388935]
[1770162063895,2.31388622,2246.1,2244.9,2.36388935]
[1770162064090,4.92588622,2246.0,2244.9,2.36388935]
[1770162064489,2.612,2246.0,2244.9,2.36388935]
[1770162064793,2.31388622,2245.9,2244.9,2.36928328]
[1770162066589,0.22830904,2246.0,2244.9,2.36928328]
[1770162066888,3.09930904,2246.0,2244.9,2.36928328]
[1770162067088,5.52008059,2246.0,2244.9,2.36928328]
[1770162067291,2.42077155,2245.9,2244.9,2.36928328]
[1770162069399,2.64372155,2245.9,2244.9,0.00539393]
[1770162073199,2.64372155,2245.9,2244.9,2.36928328]
[1770162073600,0.00536904,2246.0,2244.9,2.36928328]
[1770162075397,2.45037463,2245.6,2244.9,0.00539393]
[1770162075601,5.28636463,2245.5,2244.5,2.36388935]
[1770162075902,2.45037463,2245.4,2244.5,2.36388935]
[1770162076500,2.45037463,2245.4,2244.5,2.36800443]
[1770162077206,5.16854218,2246.0,2244.5,2.36800443]
[1770162077399,0.00536904,2246.0,2244.9,2.36388935]
[1770162078497,0.00536904,2246.0,2244.9,2.58692935]
[1770162079704,2.47295912,2246.0,2244.9,2.36388935]
[1770162081004,0.00536904,2246.0,2244.9,2.36388935]
[1770162085108,0.00536904,2246.0,2245.1,2.44590678]
[1770162089407,2.37510109,2246.0,2245.1,2.44590678]
[1770162090706,2.37510109,2246.0,2244.8,2.44590678]
[1770162090906,5.03242013,2245.9,2244.8,2.44590678]
[1770162091108,3.421,2245.8,2244.8,2.44590678]
[1770162091409,5.79073205,2245.8,2244.8,2.44590678]
[1770162091709,2.59270205,2245.7,2244.8,2.44590678]
[1770162092107,5.25539013,2245.7,2244.8,2.44590678]
[1770162092507,2.88565808,2245.7,2244.8,2.44590678]
[1770162093011,2.59270205,2245.7,2244.8,2.44590678]
[1770162093309,2.66268808,2245.6,2244.8,2.44590678]
[1770162095603,5.03242013,2245.6,2244.8,2.44590678]
[1770162095906,5.03242013,2245.6,2244.5,2.64180842]
[1770162095907,2.66268808,2245.4,2244.5,2.45002186]
[1770162097004,6.12168808,2245.5,2244.5,2.45002186]
[1770162097410,2.66268808,2245.4,2244.5,2.45002186]
[1770162097611,6.12168808,2245.5,2244.5,2.45002186]
[1770162098215,2.66268808,2245.4,2244.5,2.45002186]
[1770162098410,2.66268808,2245.3,2244.5,2.45002186]
[1770162098712,5.25541013,2245.3,2244.5,2.45002186]
[1770162098911,5.03242013,2245.2,2244.5,0.00411508]
[1770162099112,2.36973205,2245.2,2244.5,0.00411508]
[1770162099708,5.03242013,2245.2,2244.5,0.00411508]
[1770162100015,6.13368808,2245.2,2244.5,2.45002186]
[1770162100213,2.66268808,2245.3,2244.5,2.45002186]
[1770162100416,3.477,2245.4,2244.5,2.45002186]
[1770162100615,3.477,2245.4,2244.5,5.0877152]
[1770162100811,3.477,2245.4,2244.6,2.44590678]
[1770162102720,3.487,2245.6,2244.6,2.44590678]
[1770162103523,2.88562808,2245.8,2244.6,2.44590678]
[1770162103721,6.37462808,2245.8,2244.6,2.44590678]
[1770162104222,6.15168808,2245.8,2244.6,2.44590678]
[1770162104817,39.33682715,2245.9,2244.6,2.44590678]
[1770162104818,2.66268808,2245.9,2244.7,2.44590678]
[1770162105121,0.00536904,2246.0,2245.0,5.08360012]
[1770162105322,0.00536904,2246.0,2245.1,2.44590678]
[1770162108824,2.37510109,2246.0,2245.1,2.44590678]
[1770162109025,5.03778917,2246.0,2245.1,2.44590678]
[1770162109225,2.59265205,2245.9,2245.1,2.44590678]
[1770162109424,3.51,2245.8,2245.1,2.44590678]
[1770162111623,5.88763606,2245.8,2245.1,2.44590678]
[1770162113526,8.55032414,2245.8,2245.1,2.44590678]
[1770162113726,8.55032414,2245.8,2244.9,2.30517967]
[1770162115021,2.37763606,2245.7,2244.9,2.30517967]
[1770162115528,6.17268808,2245.8,2244.9,2.30517967]
[1770162116722,8.67132387,2245.8,2244.9,2.30517967]
[1770162117826,2.49863579,2245.7,2244.9,2.30517967]
[1770162118121,2.49863579,2245.6,2244.9,2.30517967]
[1770162118326,2.49863579,2245.6,2244.6,2.53490426]
[1770162119425,2.49863579,2245.3,2244.6,2.53490426]
[1770162119727,6.05463579,2245.3,2244.5,2.53901934]
[1770162119930,8.71732387,2245.3,2244.5,2.53901934]
[1770162120126,5.16132387,2245.2,2244.5,2.53901934]
[1770162120627,5.16132387,2245.2,2244.0,2.53490426]
[1770162120628,5.16132387,2244.8,2244.0,2.53490426]
[1770162120822,3.562,2244.7,2244.0,2.53490426]
[1770162121228,2.49863579,2244.6,2243.7,2.53490426]
[1770162121430,2.49863579,2244.5,2243.7,2.53490426]
[1770162121625,2.66268808,2244.2,2243.1,2.53490426]
[1770162121826,2.49863579,2244.0,2243.1,2.53490426]
[1770162122827,2.49863579,2243.6,2242.5,2.63769334]
[1770162123026,2.49863579,2243.6,2242.3,5.18699636]
[1770162123027,2.66268808,2243.4,2242.3,2.53490426]
[1770162123329,2.66268808,2244.1,2242.6,2.53490426]
[1770162123634,5.16132387,2244.4,2242.8,2.53490426]
[1770162123825,2.5025611,2244.0,2242.8,2.54048191]
[1770162124132,2.66661339,2244.0,2242.8,2.54048191]
[1770162124333,0.00392531,2244.0,2242.8,2.54048191]
[1770162124633,3.58792531,2244.0,2242.8,2.54048191]
[1770162125127,6.0865611,2244.0,2242.8,2.54048191]
[1770162125328,2.49863579,2243.9,2242.8,2.54048191]
[1770162127335,3.593,2243.8,2242.8,2.54048191]
[1770162128330,0.00392531,2244.0,2242.8,2.76371191]
[1770162128535,0.00392531,2244.0,2243.0,2.53490426]
[1770162128731,0.00392531,2244.0,2243.2,2.53490426]
[1770162129035,2.615,2244.5,2243.2,2.53490426]
[1770162129530,2.49863579,2244.4,2243.2,2.53490426]
[1770162129732,2.615,2244.5,2243.2,2.53490426]
[1770162129733,2.49863579,2244.2,2243.2,2.53490426]
[1770162129928,2.72172579,2244.2,2242.9,2.53490426]
[1770162130736,2.49863579,2244.0,2242.9,2.53490426]
[1770162130929,2.49863579,2243.8,2242.8,0.00557765]
[1770162131133,2.49863579,2243.8,2242.8,2.54048191]
[1770162137137,2.49863579,2244.1,2242.8,2.54048191]
[1770162137841,2.49863579,2244.2,2242.8,2.54048191]
[1770162138137,2.49863579,2244.0,2242.8,2.54048191]
[1770162139539,2.49863579,2243.7,2242.8,2.54048191]
[1770162139840,3.588,2243.6,2242.8,2.54048191]
[1770162142149,0.2231,2244.2,2242.8,2.54048191]
[1770162142345,2.8391,2244.2,2242.8,2.54048191]
[1770162142840,2.29355438,2244.1,2242.8,2.54048191]
[1770162143044,2.29355438,2243.9,2242.8,2.54048191]
[1770162145555,2.51668438,2243.9,2242.8,2.54048191]
[1770162145848,2.29355438,2243.7,2242.8,2.54048191]
[1770162146448,0.22313,2243.8,2242.8,2.54048191]
[1770162146648,4.52355438,2244.0,2242.8,2.54048191]
[1770162147253,7.18624246,2244.0,2242.8,2.54048191]
[1770162148048,4.52355438,2244.0,2242.8,2.54048191]
[1770162148250,7.18624246,2244.0,2242.8,2.54048191]
[1770162148553,4.95624246,2244.0,2242.8,2.54048191]
[1770162148748,3.614,2243.9,2242.8,2.54048191]
[1770162149149,2.66268808,2243.8,2242.8,2.54048191]
[1770162151252,2.66268808,2243.7,2242.9,2.51134159]
[1770162152656,2.66268808,2243.9,2243.0,2.51134159]
[1770162152949,2.66268808,2243.9,2243.1,2.51134159]
[1770162156057,2.67121948,2243.9,2243.1,2.51134159]
[1770162160961,3.71,2243.8,2243.1,2.51134159]
[1770162163662,4.96477386,2243.6,2242.8,0.00557765]
[1770162163966,2.29355438,2243.3,2242.8,0.00557765]
[1770162164162,3.724,2243.2,2242.8,0.00557765]
[1770162164461,3.724,2243.2,2242.5,5.15831484]
[1770162164663,3.724,2243.2,2242.5,2.51134159]
[1770162165458,2.29355438,2243.1,2242.5,0.00401414]
[1770162165661,4.96477386,2243.0,2242.1,2.51134159]
[1770162165861,4.96477386,2242.9,2242.1,2.51134159]
[1770162166062,8.70277386,2242.8,2242.1,2.51134159]
[1770162166262,6.03155438,2242.8,2242.1,2.51134159]
[1770162166463,3.738,2242.8,2242.1,2.51134159]
[1770162166755,3.745,2242.7,2242.1,2.51711365]
[1770162169064,3.745,2242.7,2241.9,2.51134159]
[1770162169261,6.03855438,2242.7,2241.9,2.51134159]
[1770162170063,6.03855438,2242.7,2241.9,2.51657396]
[1770162170862,2.45687074,2242.6,2241.6,2.64697325]
[1770162171068,2.45687074,2242.0,2241.2,2.35635121]
[1770162171259,2.616,2241.9,2241.2,2.35635121]
[1770162171462,2.616,2241.9,2240.6,2.35635121]
[1770162171463,2.45687074,2241.8,2240.6,2.35635121]
[1770162171662,2.616,2241.9,2240.6,2.35635121]
[1770162171963,2.616,2241.9,2240.6,2.36086591]
[1770162172261,5.07287074,2241.9,2240.6,2.36086591]
[1770162173169,2.45687074,2241.8,2240.6,2.36086591]
[1770162177661,2.68023074,2241.8,2240.6,2.36086591]
[1770162178064,2.33644393,2242.1,2240.6,2.36086591]
[1770162178266,2.617,2242.1,2240.6,2.36086591]
[1770162179671,2.617,2242.1,2240.8,2.44116938]
[1770162180071,2.33644393,2242.0,2240.8,2.44116938]
[1770162181769,2.618,2242.2,2240.8,2.44116938]
[1770162181969,2.33644393,2242.1,2240.8,2.44116938]
[1770162182571,2.33644393,2241.7,2240.6,2.44568408]
[1770162183273,2.33644393,2241.7,2240.6,2.66915408]
[1770162183463,2.33644393,2241.7,2240.6,2.44568408]
[1770162183665,2.618,2241.8,2240.0,2.44116938]
[1770162183666,2.33644393,2241.3,2240.0,2.44116938]
[1770162183865,2.55986393,2241.1,2240.0,2.44116938]
[1770162184068,2.33644393,2240.9,2239.4,2.44116938]
[1770162184269,2.55989393,2240.9,2239.4,2.44116938]
[1770162184772,2.33644393,2240.7,2239.4,2.44656175]
[1770162186673,2.618,2240.8,2239.4,2.44656175]
[1770162187174,4.95444393,2240.8,2239.4,2.44656175]
[1770162188274,0.00528481,2240.9,2239.7,2.66472938]
[1770162189279,0.00528481,2240.9,2240.1,2.44116938]
[1770162189579,2.33644393,2241.6,2240.1,2.44116938]
[1770162190180,2.33644393,2241.4,2240.1,2.44116938]
[1770162190381,2.56417096,2241.4,2240.1,2.44116938]
[1770162190782,2.33644393,2241.2,2240.1,2.44116938]
[1770162198588,2.33644393,2241.0,2240.1,2.44116938]
[1770162200286,2.64487865,2241.2,2240.1,2.44116938]
[1770162200489,2.86827865,2241.3,2240.1,2.44116938]
[1770162200886,2.64487865,2241.3,2240.1,2.44116938]
[1770162201389,2.36663761,2241.1,2240.1,2.44116938]
[1770162201984,2.86829865,2241.2,2240.1,2.44116938]
[1770162202389,5.23493626,2241.2,2240.1,2.44116938]
[1770162202592,2.64487865,2241.1,2240.1,2.44116938]
[1770162202888,2.64487865,2241.3,2240.1,2.44116938]
[1770162203390,6.41921568,2241.4,2240.1,2.66467938]
[1770162203585,3.77433703,2241.4,2240.1,2.66467938]
[1770162204089,3.77433703,2241.4,2240.2,2.34154046]
[1770162205489,6.14097464,2241.4,2240.2,2.34154046]
[1770162205691,8.78585329,2241.4,2240.2,2.34154046]
[1770162206792,2.36663761,2241.3,2240.2,2.34154046]
[1770162207693,2.36663761,2241.2,2240.2,2.34154046]
[1770162209090,2.64487865,2241.3,2240.2,2.34154046]
[1770162209294,6.64260568,2241.4,2240.2,2.34154046]
[1770162209996,3.85,2241.3,2240.2,2.34154046]
[1770162210698,6.49487865,2241.3,2240.2,2.34154046]
[1770162214897,2.36663761,2241.2,2240.2,2.34154046]
[1770162215293,5.01151626,2241.2,2240.3,2.34154046]
[1770162215498,2.64487865,2241.2,2240.3,2.34154046]
[1770162215700,2.36663761,2241.1,2240.2,3.95950074]
[1770162215900,2.36663761,2241.0,2240.1,6.3010412]
[1770162216101,6.27463761,2240.9,2240.1,6.3010412]
[1770162216496,3.908,2240.9,2240.2,2.34154046]
[1770162217099,3.908,2240.9,2240.1,3.95950074]
[1770162217100,2.36663761,2240.6,2240.1,3.95950074]
[1770162217307,3.911,2240.5,2239.7,2.34154046]
[1770162217505,2.64487865,2240.7,2239.7,2.34154046]
[1770162217710,3.912,2240.5,2239.7,2.34154046]
[1770162220309,3.918,2240.7,2239.7,2.34154046]
[1770162221209,3.918,2240.7,2239.8,2.34154046]
[1770162227519,2.36663761,2240.6,2239.8,2.34154046]
[1770162230221,2.36663761,2240.4,2239.6,3.95950074]
[1770162230416,2.36663761,2240.4,2239.5,2.34154046]
[1770162231119,2.36663761,2240.4,2239.5,5.0014685]
[1770162231321,2.36663761,2240.4,2239.6,2.49126963]
[1770162231514,5.03695794,2240.6,2239.6,2.49126963]
[1770162231715,2.39207929,2240.5,2239.5,2.65992804]
[1770162231922,2.39207929,2239.9,2239.1,2.49126963]
[1770162232221,2.39207929,2239.7,2238.9,2.71323419]
[1770162232620,2.39207929,2239.7,2238.9,0.22196456]
[1770162233023,2.39207929,2239.6,2238.9,0.2271479]
[1770162233319,2.39622807,2239.7,2238.9,2.71841753]
[1770162233916,2.39622807,2239.7,2238.9,0.2271479]
[1770162235117,0.14083349,2238.9,2237.3,2.54176559]
[1770162235318,0.00174824,2238.5,2237.6,2.54176559]
[1770162235821,0.00174824,2238.4,2237.0,2.54176559]
[1770162236019,0.00174824,2238.1,2237.1,4.62238503]
[1770162236219,0.00174824,2238.0,2237.1,4.62238503]
[1770162236419,0.00174824,2238.0,2237.0,0.0053848]
[1770162236618,0.00174824,2238.0,2237.0,4.62776983]
[1770162236815,0.02636864,2237.7,2236.4,2.54263971]
[1770162237017,3.956,2237.6,2236.4,2.54263971]
[1770162237227,3.956,2237.5,2236.6,2.54263971]
[1770162237724,3.956,2237.5,2236.8,2.54263971]
[1770162237920,0.22800529,2238.1,2236.8,2.54771571]
[1770162238117,3.958,2238.0,2237.0,2.54263971]
[1770162238624,3.958,2238.0,2236.8,0.005076]
[1770162238817,0.02319885,2237.9,2236.8,0.005076]
[1770162239725,0.02319885,2237.9,2236.8,2.53611629]
[1770162242421,0.02319885,2237.9,2236.8,7.00251629]
[1770162242621,3.958,2238.0,2236.9,2.52111711]
[1770162243022,4.0022558,2238.0,2236.9,2.52111711]
[1770162244024,0.0442558,2237.4,2236.1,2.52051181]
[1770162244320,0.22379,2237.4,2236.2,2.52051181]
[1770162244527,2.08848617,2237.7,2236.5,2.52051181]
[1770162244916,2.622,2237.6,2236.5,2.52051181]
[1770162245125,2.622,2237.6,2236.5,2.52517474]
[1770162245320,2.7069127,2237.6,2236.5,2.52517474]
[1770162245721,0.3086527,2237.9,2236.6,2.50018336]
[1770162245921,0.3086527,2237.9,2236.8,2.50018336]
[1770162246423,0.0849127,2237.8,2236.6,2.50018336]
[1770162247227,0.22374,2237.9,2236.9,2.46359657]
[1770162247625,0.38182627,2237.9,2237.0,2.46359657]
[1770162247825,0.22374,2237.9,2237.2,2.46359657]
[1770162248223,0.22374,2237.9,2237.2,6.92999657]
[1770162248525,0.00427529,2238.1,2237.5,4.4664]
[1770162248726,0.00427529,2238.1,2237.3,2.46359657]
[1770162248923,0.00427529,2238.1,2237.4,4.4664]
[1770162249127,0.00427529,2238.1,2237.5,4.4664]
[1770162249329,0.00427529,2238.1,2237.4,6.90793]
[1770162249626,0.00427529,2238.1,2237.4,2.44153]
[1770162249931,3.04886941,2238.8,2237.9,6.90793]
[1770162250229,3.04886941,2238.8,2237.9,2.44153]
[1770162250426,3.40464375,2238.8,2237.9,2.44153]
[1770162250823,3.04886941,2238.8,2237.9,2.44153]
[1770162251125,3.05421418,2238.8,2237.9,2.44153]
[1770162251423,2.62834477,2238.8,2238.1,2.44177857]
[1770162251728,0.00534477,2238.8,2238.1,2.44657291]
[1770162251922,0.00534477,2238.8,2238.1,6.91297291]
[1770162252318,0.00534477,2238.8,2238.2,2.44177857]
[1770162252520,2.623,2239.0,2238.4,4.4664]
[1770162252721,2.623,2239.0,2238.2,2.44177857]
[1770162252722,2.623,2239.0,2238.3,6.90817857]
[1770162253228,2.623,2239.0,2238.4,6.90708273]
[1770162253626,2.62733304,2239.0,2238.4,6.90708273]
[1770162255123,0.00433304,2239.0,2238.5,2.43896259]
[1770162255325,2.82472228,2239.4,2238.6,2.43896259]
[1770162256031,2.82472228,2239.4,2238.1,0.00479434]
[1770162256032,0.20735424,2238.9,2238.1,0.00479434]
[1770162256228,0.20735424,2238.6,2237.5,2.43896259]
[1770162256428,0.22372,2238.2,2237.2,2.43896259]
[1770162256624,0.43107424,2238.2,2237.2,2.43896259]
[1770162256824,0.43107424,2238.2,2237.3,4.4664]
[1770162257228,0.43498219,2238.2,2237.3,6.89774638]
[1770162257429,0.43498219,2238.2,2237.3,2.43134638]
[1770162257630,0.43498219,2238.2,2237.3,6.89774638]
[1770162258532,0.43498219,2238.2,2237.3,2.43134638]
[1770162260134,0.43498219,2238.2,2237.3,6.89774638]
[1770162260330,0.22373,2238.1,2237.3,6.89774638]
[1770162260728,0.22373,2238.1,2237.4,4.4664]
[1770162260927,0.22373,2238.1,2237.4,6.9819134]
[1770162261132,0.22373,2238.1,2237.5,4.4664]
[1770162261628,0.22373,2238.1,2237.4,2.5155134]
[1770162261629,0.22373,2238.1,2237.7,2.5155134]
[1770162261827,0.22373,2238.1,2237.5,4.4664]
[1770162262027,0.22373,2238.1,2237.3,2.51905947]
[1770162262028,0.22374,2238.0,2237.4,4.4664]
[1770162262230,0.22375,2237.9,2237.3,2.51905947]
[1770162262635,0.22375,2237.9,2237.4,4.4664]
[1770162262835,0.22375,2237.9,2237.4,6.9819134]
[1770162263536,2.6678861,2238.0,2237.4,6.9819134]
[1770162263735,3.956,2237.9,2237.4,2.5155134]
[1770162264230,6.6238861,2237.9,2237.4,6.9819134]
[1770162264436,6.6238861,2237.9,2237.5,2.5155134]
[1770162264635,3.956,2237.9,2237.7,4.4664]
[1770162265032,3.956,2237.9,2237.8,4.4664]
[1770162265235,3.956,2237.9,2237.6,2.50589334]
[1770162267637,3.956,2237.9,2237.3,2.51905947]
[1770162268638,6.8476261,2237.9,2237.3,2.51905947]
[1770162268843,3.956,2237.9,2237.3,2.51905947]
[1770162272247,6.6238861,2237.9,2237.3,2.51905947]
[1770162274744,3.956,2237.9,2237.3,2.51905947]
[1770162275145,2.236,2238.4,2237.3,2.51905947]
[1770162275146,38.22128558,2238.3,2237.3,2.51905947]
[1770162275349,4.124,2238.6,2237.3,2.51905947]
[1770162275539,0.62565149,2238.5,2237.3,2.51905947]
[1770162276349,0.62977687,2238.5,2237.3,2.51905947]
[1770162276846,0.59670453,2238.1,2237.3,2.51905947]
[1770162277152,2.902,2238.0,2237.3,2.51905947]
[1770162277449,7.59453,2238.0,2237.3,2.51905947]
[1770162285453,5.3357722,2238.2,2237.3,2.51905947]
[1770162285651,5.3357722,2238.4,2237.4,2.5155134]
[1770162285854,0.00412538,2238.5,2237.6,2.5155134]
[1770162286251,5.04810136,2238.4,2237.6,2.5155134]
[1770162286654,4.4688,2238.3,2237.6,2.5155134]
[1770162289758,4.4688,2238.2,2237.6,2.5155134]
[1770162289958,4.4688,2238.3,2237.6,2.5155134]
[1770162290158,0.22781538,2238.5,2237.6,2.5155134]
[1770162290358,4.4688,2238.4,2237.6,2.5155134]
[1770162293055,0.22781538,2238.5,2237.6,2.5155134]
[1770162293361,0.00412538,2238.5,2237.6,2.5155134]
[1770162295765,0.22364,2238.9,2237.8,2.29245506]
[1770162295954,2.52502794,2239.4,2238.3,4.96212761]
[1770162296161,0.22361,2239.3,2238.2,2.29245506]
[1770162296366,4.4688,2239.2,2238.2,2.29245506]
[1770162296570,4.4688,2239.1,2238.2,2.29245506]
[1770162296771,4.47269508,2239.1,2238.2,2.29245506]
[1770162297066,4.4688,2239.0,2238.2,2.29245506]
[1770162298066,0.00389508,2239.1,2238.2,2.29245506]
[1770162300467,5.14702794,2239.6,2238.2,2.29245506]
[1770162300673,2.52502794,2239.6,2238.4,2.29245506]
[1770162301076,6.99382794,2239.6,2238.4,2.29245506]
[1770162301568,6.99935969,2239.6,2238.4,2.29245506]
[1770162302476,2.52502794,2239.4,2238.4,2.29245506]
[1770162302675,2.52502794,2239.1,2238.4,2.29245506]
[1770162302873,2.52502794,2238.8,2238.1,2.29245506]
[1770162303072,2.52502794,2238.7,2237.9,2.29245506]
[1770162303274,2.52502794,2238.5,2237.7,2.29245506]
[1770162303974,4.4688,2238.2,2237.7,2.29245506]
[1770162304474,4.4688,2238.1,2237.7,2.29245506]
[1770162304674,4.4688,2238.2,2237.7,2.29245506]
[1770162305074,4.4688,2238.1,2237.7,2.29245506]
[1770162305273,4.4688,2238.2,2237.7,2.29245506]
[1770162305669,4.4688,2238.1,2237.7,2.29245506]
[1770162305875,4.4688,2238.2,2237.7,2.29245506]
[1770162306275,4.4688,2238.2,2237.6,2.235]
[1770162306276,4.4688,2238.0,2237.6,2.235]
[1770162306577,2.52502794,2237.9,2237.3,0.00354607]
[1770162307076,4.4688,2237.5,2236.9,2.29245506]
[1770162307375,2.52502794,2237.6,2236.9,2.29245506]
[1770162307571,4.4688,2237.5,2236.9,2.29245506]
[1770162307771,0.00545079,2238.0,2236.9,4.95578056]
[1770162308074,0.00545079,2238.0,2237.3,2.29245506]
[1770162308273,2.52502794,2238.5,2237.3,2.29245506]
[1770162308470,6.99382794,2238.4,2237.3,2.29245506]
[1770162309076,6.99382794,2238.3,2237.3,2.29245506]
[1770162309280,2.52904533,2238.3,2237.3,2.29245506]
[1770162309478,0.00401739,2238.3,2237.3,2.29245506]
[1770162309678,0.00401739,2238.3,2237.6,2.29245506]
[1770162310078,4.47281739,2238.3,2237.6,2.29245506]
[1770162311172,0.00401739,2238.3,2237.6,2.29245506]
[1770162311479,4.4688,2238.0,2237.4,2.29245506]
[1770162311679,4.4688,2238.1,2237.4,2.29245506]
[1770162311978,4.4688,2237.9,2237.4,2.29245506]
[1770162312173,4.4688,2237.7,2237.4,2.29245506]
[1770162312373,2.52904533,2238.3,2237.4,2.29245506]
[1770162312578,4.4688,2238.2,2237.4,2.29245506]
[1770162313175,4.4688,2238.1,2237.4,2.29245506]
[1770162313375,4.4688,2238.2,2237.4,2.29245506]
[1770162313877,4.4688,2238.1,2237.4,2.29245506]
[1770162314072,4.4688,2238.2,2237.4,2.29245506]
[1770162314471,4.4688,2238.1,2237.4,2.29245506]
[1770162314670,4.4688,2238.2,2237.4,2.29245506]
[1770162315579,0.00401739,2238.3,2237.4,2.29245506]
[1770162315580,4.4688,2238.1,2237.4,2.29245506]
[1770162315773,4.4688,2238.2,2237.4,2.29245506]
[1770162316174,0.00401739,2238.3,2237.4,2.29245506]
[1770162316175,4.4688,2238.1,2237.4,2.29245506]
[1770162316379,4.4688,2238.2,2237.5,2.29245506]
[1770162316781,0.00401739,2238.3,2237.5,4.95578056]
[1770162316982,0.00047132,2238.3,2237.6,2.29245506]
[1770162317282,2.52502794,2238.6,2237.9,1.38290399]
[1770162318185,4.138,2239.0,2237.9,1.38290399]
[1770162318186,2.52502794,2239.0,2238.1,1.37715051]
[1770162318384,2.52502794,2239.0,2238.1,4.04047601]
[1770162319077,2.52502794,2239.0,2238.2,4.04047601]
[1770162319283,2.53060048,2239.0,2238.1,2.6633255]
[1770162319679,2.53060048,2239.0,2238.0,2.6633255]
[1770162319984,2.74870794,2238.6,2237.6,2.66254335]
[1770162322985,2.52502794,2238.6,2237.7,1.37200228]
[1770162324689,2.33343884,2238.4,2237.6,2.66254335]
[1770162324878,2.33343884,2238.4,2237.4,5.43454335]
[1770162324879,2.55713884,2238.4,2237.4,5.43454335]
[1770162326481,2.55713884,2238.4,2237.4,2.66254335]
[1770162326679,2.33343884,2238.4,2237.4,2.66254335]
[1770162326887,2.33343884,2238.4,2237.4,4.00782746]
[1770162328381,2.33343884,2238.4,2237.5,2.66254335]
[1770162328786,2.33343884,2238.4,2237.4,4.00782746]
[1770162329487,2.33343884,2238.4,2237.5,1.35643603]
[1770162329688,2.33343884,2238.4,2237.5,4.01897938]
[1770162330189,2.33343884,2238.4,2237.4,6.65820093]
[1770162330582,2.33343884,2238.4,2237.5,2.66254335]
[1770162330891,2.33343884,2238.4,2237.4,2.66254335]
[1770162331189,2.33343884,2238.4,2237.5,2.66254335]
[1770162331384,2.33343884,2238.4,2237.6,1.36247749]
[1770162331790,2.33343884,2238.4,2237.5,2.66254335]
[1770162333790,2.33343884,2238.1,2237.4,2.66254335]
[1770162333992,2.55716884,2238.1,2237.1,2.66254335]
[1770162334193,2.55716884,2238.1,2237.0,2.66254335]
[1770162334494,2.55716884,2238.1,2236.9,2.6658454]
[1770162335497,2.33343884,2237.9,2236.9,2.6658454]
[1770162335688,2.33343884,2237.7,2236.9,2.6658454]
[1770162338198,6.50943884,2237.9,2237.0,1.29011972]
[1770162338496,2.33343884,2238.1,2237.1,1.29011972]
[1770162338692,2.33343884,2238.1,2237.2,3.95266307]
[1770162339196,2.33343884,2238.1,2237.3,1.29011972]
[1770162339393,2.33343884,2238.3,2237.4,1.29011972]
[1770162339697,6.51243884,2238.5,2237.6,1.29011972]
[1770162339997,2.33343884,2238.4,2237.6,3.95266307]
[1770162340196,2.33343884,2238.4,2237.6,1.29011972]
[1770162340393,2.33343884,2238.4,2237.4,2.66254335]
[1770162340589,2.33343884,2238.4,2237.3,2.66254335]
[1770162340788,2.55712884,2238.4,2237.3,2.66254335]
[1770162341603,2.33343884,2238.0,2237.1,3.05212697]
[1770162341904,40.00196377,2237.8,2236.2,2.54169113]
[1770162342102,2.67398181,2237.4,2236.2,2.54169113]
[1770162342403,0.22383,2237.1,2235.5,2.54169114]
[1770162342794,0.22383,2237.0,2235.5,2.54497396]
[1770162343196,2.236,2236.9,2235.5,2.54497396]
[1770162343403,0.22389,2236.5,2235.5,0.00328282]
[1770162343801,0.22399,2235.5,2233.9,6.80961179]
[1770162344097,0.10821731,2235.2,2233.9,2.72089993]
[1770162344699,0.11185896,2235.2,2233.9,2.72633534]
[1770162346104,0.09066149,2235.1,2233.9,2.72633534]
[1770162346399,0.09066149,2235.0,2233.9,0.22739997]
[1770162346704,2.09536609,2234.0,2232.1,2.54169114]
[1770162346901,2.09536609,2233.4,2232.1,2.54169114]
[1770162347104,2.624,2233.3,2231.3,2.54169114]
[1770162347305,4.199,2233.6,2231.7,2.76605114]
[1770162347504,4.20233081,2233.6,2231.9,2.54169114]
[1770162347706,4.20233081,2233.6,2232.1,2.54169114]
[1770162348300,0.0282166,2233.3,2231.9,2.52758283]
[1770162348703,0.0282166,2232.9,2231.7,2.5322477]
[1770162348902,2.624,2232.8,2231.7,2.5322477]
[1770162349102,0.0282166,2233.2,2231.7,2.5322477]
[1770162349302,2.624,2233.0,2231.7,2.5322477]
[1770162349502,2.6522166,2233.0,2231.7,2.5322477]
[1770162350108,2.624,2233.0,2231.7,2.5322477]
[1770162350606,0.22751081,2233.6,2231.7,2.5322477]
[1770162350810,0.00333081,2233.6,2231.7,2.5322477]
[1770162351108,4.863,2233.5,2231.7,2.5322477]
[1770162351309,0.00333081,2233.6,2231.7,2.5322477]
[1770162351510,4.863,2233.5,2231.7,2.5322477]
[1770162352206,0.00333081,2233.6,2231.7,2.5322477]
[1770162352505,0.00333081,2233.6,2231.7,2.7566077]
[1770162352710,4.864,2233.5,2231.7,2.7566077]
[1770162352910,2.62933081,2233.6,2231.9,2.77021699]
[1770162353208,2.62933081,2233.6,2232.1,2.54587699]
[1770162353608,0.00333081,2233.6,2232.3,2.54587699]
[1770162355408,0.00333081,2233.6,2232.6,2.54541202]
[1770162355611,2.09536609,2234.6,2232.6,2.54541202]
[1770162355612,2.626,2234.4,2232.6,2.76968202]
[1770162356013,2.626,2234.4,2232.8,2.54541202]